[Event "World Junior U20 Girls 2018"]
[Site "Gebze"]
[Date "2018.09.08"]
[Round "5"]
[White "Potapova, Margarita"]
[Black "Du, Yuxin"]
[Result "1-0"]
[ECO "E12"]
[WhiteElo "2277"]
[BlackElo "2146"]
[Annotator "NA"]
[PlyCount "77"]
[EventDate "2018.09.05"]
[EventType "swiss"]
[EventCountry "TUR"]
[SourceTitle "playchess.com"]
[Source "ChessBase"]
[SourceQuality "1"]
[TimeControl "40/5400+30:1800+30"]

1. d4 {[%emt 0:00:30]} Nf6 {[%emt 0:01:30]} 2. c4 {[%emt 0:00:30]} e6 {[%emt 0:00:30]} 3. Nf3 {[%emt 0:00:00]} b6 {[%emt 0:00:00]} 4. a3 {[%emt 0:00:00]} Bb7 {[%emt 0:01:00]} 5. Nc3 {[%emt 0:00:00]} Be7 {[%emt 0:01:30]} 6. d5 {[%emt 0:00:00]} Ba6 {[%emt 0:10:30]} 7. e4 {[%emt 0:01:30]} exd5 {[%emt 0:00:30]} 8. cxd5 {[%emt 0:14:30]} Bxf1 {[%emt 0:00:30]} 9. Kxf1 {[%emt 0:00:00]} d6 {[%emt 0:05:30]} 10. Nd4 {[%emt 0:03:00]} Nfd7 {[%emt 0:07:30]} 11. g3 {[%emt 0:04:30]} Bf6 {[%emt 0:03:30]} 12. Kg2 {[%emt 0:01:30]} O-O {[%emt 0:05:30]} 13. Be3 {[%emt 0:03:30]} Re8 {[%emt 0:07:30]} 14. Rc1 {[%emt 0:04:30]} a5 {[%emt 0:15:30]} 15. f3 {[%emt 0:07:30]} Na6 {[%emt 0:13:30]} 16. Nc6 {[%emt 0:21:30]} Qc8 {[%emt 0:00:30]} 17. b4 {[%emt 0:01:30]} axb4 {[%emt 0:04:56]} 18. axb4 {[%emt 0:00:00]} Ne5 {[%emt 0:10:17]} 19. Qb3 {[%emt 0:13:00]} Nb8 {[%emt 0:08:40]} 20. Nxe5 {[%emt 0:08:13]} Bxe5 {[%emt 0:00:18]} 21. Rc2 {[%emt 0:00:45]} Qd7 {[%emt 0:00:31]} 22. Rhc1 {[%emt 0:00:30]} c5 {[%emt 0:00:36]} 23. dxc6 {[%emt 0:00:42]} Nxc6 {[%emt 0:00:05]} 24. Nd5 {[%emt 0:01:03]} Nd4 {[%emt 0:00:44]} 25. Bxd4 {[%emt 0:00:07]} Bxd4 {[%emt 0:00:00]} 26. Nc7 {[%emt 0:00:42]} Rac8 {[%emt 0:01:18]} 27. Nxe8 {[%emt 0:00:30]} Rxe8 {[%emt 0:00:04]} 28. Rc7 {[%emt 0:02:41]} Qe6 {[%emt 0:00:05]} 29. Qxe6 {[%emt 0:00:21]} fxe6 {[%emt 0:00:05]} 30. R1c4 {[%emt 0:01:19]} Be3 {[%emt 0:02:05]} 31. Rd7 {[%emt 0:00:06]} d5 {[%emt 0:00:21]} 32. exd5 {[%emt 0:00:14]} exd5 {[%emt 0:00:11]} 33. Rxd5 {[%emt 0:00:02]} Ra8 {[%emt 0:00:17]} 34. Rd7 {[%emt 0:00:30]} Ra2+ {[%emt 0:00:21]} 35. Kh3 {[%emt 0:00:10]} h5 {[%emt 0:00:31]} 36. Rcc7 {[%emt 0:01:30]} Bg1 {[%emt 0:01:01]} 37. Rxg7+ {[%emt 0:00:30]} Kf8 {[%emt 0:00:00]} 38. Kh4 {[%emt 0:01:27]} Rxh2+ {[%emt 0:00:13]} 39. Kg5 {[%emt 0:00:04]} 1-0

[Event "World Junior U20 Girls 2018"]
[Site "Gebze"]
[Date "2018.09.08"]
[Round "5"]
[White "Sliwicka, Alicja"]
[Black "Khomeriki, Nino"]
[Result "0-1"]
[ECO "C55"]
[WhiteElo "2272"]
[BlackElo "2313"]
[Annotator "NA"]
[PlyCount "62"]
[EventDate "2018.09.05"]
[EventType "swiss"]
[EventCountry "TUR"]
[SourceTitle "playchess.com"]
[Source "ChessBase"]
[SourceQuality "1"]
[TimeControl "40/5400+30:1800+30"]

1. e4 {[%emt 0:00:30]} e5 {[%emt 0:00:30]} 2. Nf3 {[%emt 0:00:00]} Nc6 {[%emt 0:00:00]} 3. Bc4 {[%emt 0:00:00]} Nf6 {[%emt 0:00:00]} 4. d3 {[%emt 0:00:30]} Be7 {[%emt 0:00:30]} 5. O-O {[%emt 0:00:30]} O-O {[%emt 0:00:30]} 6. Re1 {[%emt 0:00:00]} d6 {[%emt 0:00:00]} 7. a4 {[%emt 0:00:00]} Kh8 {[%emt 0:07:00]} 8. a5 {[%emt 0:00:00] C55: Two Knights: 4 d3, 4 d4 exd4 5 e5 and Max Lange Attack} (8. Nc3 Ng8 9. Nd5 f5 10. h3 fxe4 11. dxe4 Nf6 12. a5 a6 13. Ra3 Be6 14. Nxf6 Bxc4 15. Nd5 Bb5 {½-½ (67) Caruana,F (2822)-Grischuk,A (2766) Saint Louis 2018}) 8... a6 {[%emt 0:00:00]} 9. Nc3 {[%emt 0:00:00]} h6 {[%emt 0:05:00]} 10. h3 {[%emt 0:00:30]} Nh7 {[%emt 0:00:30]} 11. Nd5 {[%emt 0:01:30]} f5 {[%emt 0:00:30]} 12. c3 {[%emt 0:02:30]} f4 $146 {[%emt 0:24:30]} ({Predecessor:} 12... Bf6 13. b4 g5 14. d4 fxe4 15. Rxe4 Bg7 16. dxe5 dxe5 {1-0 (36) Wang,K (2323)-Friedel,J (2519) Philadelphia 2016}) 13. d4 {[%emt 0:00:30]} Ng5 {[%emt 0:00:30]} 14. Nh2 {[%emt 0:23:30]} Bd7 {[%emt 0:14:30]} 15. b4 {[%emt 0:10:30]} Be8 {[%emt 0:06:30]} 16. Bb3 {[%emt 0:05:30]} Bg6 {[%emt 0:03:30]} 17. Bc2 {[%emt 0:00:30]} Bf7 {[%emt 0:04:30]} 18. Ba3 {[%emt 0:06:30]} f3 {[%emt 0:05:30]} 19. h4 {[%emt 0:05:30]} Nh7 {[%emt 0:03:30]} 20. Nxe7 {[%emt 0:09:30]} Qxe7 {[%emt 0:01:30]} 21. dxe5 {[%emt 0:06:30]} Bh5 {[%emt 0:05:55]} 22. exd6 {[%emt 0:03:30]} Qxh4 {[%emt 0:00:41]} 23. Re3 $2 {[%emt 0:04:22]} (23. Qd3 {war die entscheidende Verteidigung.} Ne5 24. g3 Qxg3+ 25. fxg3 f2+ 26. Kg2 fxe1=N+ 27. Rxe1 Nxd3 28. Bxd3) 23... fxg2 {[%emt 0:02:22]} 24. Qe1 {[%emt 0:00:10]} Ng5 {[%emt 0:00:57]} 25. Kxg2 {[%emt 0:02:04] [#]} Bf3+ $1 {[%emt 0:04:35]} 26. Rxf3 {[%emt 0:07:00]} Nxf3 {[%emt 0:01:08]} 27. Nxf3 {[%emt 0:00:34]} Qg4+ {[%emt 0:00:30]} 28. Kf1 {[%emt 0:00:00]} Qh3+ {[%emt 0:00:08]} 29. Kg1 {[%emt 0:01:51]} Rxf3 {[%emt 0:02:25]} 30. e5 {[%emt 0:05:09]} Rf4 {[%emt 0:01:51]} 31. Bd1 {[%emt 0:00:35]} Rh4 {[%emt 0:00:37]} 0-1

[Event "World Junior U20 Girls 2018"]
[Site "Gebze"]
[Date "2018.09.08"]
[Round "5"]
[White "Alinasab, Mobina"]
[Black "Song, Yuxin"]
[Result "1/2-1/2"]
[ECO "B90"]
[WhiteElo "2261"]
[BlackElo "2156"]
[Annotator "NA"]
[PlyCount "133"]
[EventDate "2018.09.05"]
[EventType "swiss"]
[EventCountry "TUR"]
[SourceTitle "playchess.com"]
[Source "ChessBase"]
[SourceQuality "1"]
[TimeControl "40/5400+30:1800+30"]

1. e4 {[%emt 0:00:30]} c5 {[%emt 0:00:30]} 2. Nf3 {[%emt 0:01:30]} d6 {[%emt 0:00:00]} 3. d4 {[%emt 0:00:00]} cxd4 {[%emt 0:00:00]} 4. Nxd4 {[%emt 0:00:00]} Nf6 {[%emt 0:00:30]} 5. Nc3 {[%emt 0:00:30]} a6 {[%emt 0:00:00]} 6. h3 {[%emt 0:00:00]} e5 {[%emt 0:02:00]} 7. Nde2 {[%emt 0:00:00]} h5 {[%emt 0:02:30] B90: Sicilian Najdorf: Unusual White 6th moves, 6 Be3 Ng4 and 6 Be3 e5} (7... b5 8. Ng3 Qc7 9. Bd3 g6 10. O-O Bg7 11. Bd2 O-O 12. a4 b4 13. Na2 a5 14. c3 bxc3 15. Nxc3 Be6 {½-½ (40) Svidler,P (2760)-Khismatullin,D (2632) Sochi 2018}) 8. Bg5 {[%emt 0:01:30]} Be6 {[%emt 0:00:30]} 9. Qd2 {[%emt 0:03:30]} Nbd7 {[%emt 0:01:30]} 10. Ng3 {[%emt 0:06:30]} Qc7 $146 {[%emt 0:04:30]} ({Predecessor:} 10... Be7 11. h4 Qa5 12. Rd1 b5 13. Bd3 Rc8 14. O-O Qb6 15. Kh1 {1-0 (30) Abrahamyan,T (2264)-Troff,K (2279) Los Angeles 2011}) 11. Be2 {[%emt 0:02:30]} b5 {[%emt 0:02:30]} 12. a3 {[%emt 0:06:30]} Qb7 {[%emt 0:17:30]} 13. Bf3 {[%emt 0:03:30]} g6 {[%emt 0:09:30]} 14. Nf1 {[%emt 0:09:30]} Nh7 {[%emt 0:06:30]} 15. Be3 {[%emt 0:00:30]} Nhf6 {[%emt 0:00:30]} 16. Bg5 {[%emt 0:09:30]} Nh7 {[%emt 0:00:00]} 17. Be3 {[%emt 0:02:30]} Nhf6 {[%emt 0:00:00]} 18. g3 {[%emt 0:05:30]} Nc5 {[%emt 0:08:30]} 19. Bxc5 {[%emt 0:01:30]} dxc5 {[%emt 0:00:30]} 20. Ne3 {[%emt 0:00:00]} Bh6 {[%emt 0:04:30]} 21. Qe2 {[%emt 0:01:00]} O-O-O {[%emt 0:01:30]} 22. Bg2 {[%emt 0:02:30]} h4 {[%emt 0:07:30]} 23. g4 {[%emt 0:04:30]} Rd6 {[%emt 0:01:30]} 24. O-O {[%emt 0:02:30]} Rhd8 {[%emt 0:00:30]} 25. Rad1 {[%emt 0:02:30]} Rxd1 {[%emt 0:01:30]} 26. Rxd1 {[%emt 0:01:30]} Rxd1+ {[%emt 0:00:30]} 27. Qxd1 {[%emt 0:00:00]} Qd7 {[%emt 0:01:30]} 28. Ncd5 {[%emt 0:01:00]} Bxd5 {[%emt 0:01:30]} 29. Nxd5 {[%emt 0:00:30]} Nxd5 {[%emt 0:00:30]} 30. exd5 {[%emt 0:00:30]} Kc7 {[%emt 0:04:30]} 31. Qe1 {[%emt 0:02:30]} Qd6 {[%emt 0:00:30]} 32. Qa5+ {[%emt 0:00:30]} Kb7 {[%emt 0:02:30]} 33. c4 $11 {[%emt 0:07:30]} bxc4 {[%emt 0:03:32]} 34. Qa4 {[%emt 0:01:30]} Kc7 {[%emt 0:01:18]} 35. Qxc4 {[%emt 0:00:30]} Kd8 {[%emt 0:02:03]} 36. Qa4 {[%emt 0:02:30]} Bd2 {[%emt 0:01:58]} 37. Qb3 {[%emt 0:00:30]} Kc7 {[%emt 0:01:12]} 38. Qc2 {[%emt 0:01:51]} Bf4 {[%emt 0:00:08]} 39. Qc4 {[%emt 0:06:41]} Kd8 {[%emt 0:01:02]} 40. Bf1 {[%emt 0:00:00]} Ke7 {[%emt 0:00:00]} 41. Bd3 {[%emt 0:01:28]} Qb6 {[%emt 0:03:17]} 42. Qa4 {[%emt 0:08:30]} a5 {[%emt 0:02:30]} 43. Bb5 {[%emt 0:00:30]} Bc1 {[%emt 0:01:30]} 44. b3 {[%emt 0:09:30]} Bxa3 {[%emt 0:04:30]} 45. d6+ {[%emt 0:11:18]} Kxd6 {[%emt 0:01:30]} 46. Be8 {[%emt 0:00:08]} Qd8 {[%emt 0:01:30]} 47. Bxf7 {[%emt 0:00:07]} Bb4 {[%emt 0:04:30]} 48. Bxg6 {[%emt 0:00:17]} Kc7 {[%emt 0:01:30]} 49. Be4 {[%emt 0:02:20]} Qd7 {[%emt 0:01:30]} 50. Qa2 {[%emt 0:02:22]} Qd2 {[%emt 0:00:30]} 51. Qb1 {[%emt 0:04:52]} Qe1+ {[%emt 0:04:30]} 52. Qxe1 {[%emt 0:00:01]} Bxe1 {[%emt 0:00:00]} 53. Kf1 {[%emt 0:01:05]} Bd2 {[%emt 0:00:00]} 54. Ke2 {[%emt 0:00:00]} Bf4 {[%emt 0:01:30]} 55. Kd3 {[%emt 0:02:42]} Kd6 {[%emt 0:00:30]} 56. Ba8 {[%emt 0:01:07]} Ke6 {[%emt 0:01:30]} 57. Ke4 {[%emt 0:00:14]} Bc1 {[%emt 0:00:30]} 58. Bd5+ {[%emt 0:00:33]} Kf6 {[%emt 0:00:30]} 59. Bc4 {[%emt 0:00:04]} Bd2 {[%emt 0:00:45]} 60. Kd5 {[%emt 0:01:22]} Bb4 {[%emt 0:00:30]} 61. Kd6 {[%emt 0:01:26]} e4 {[%emt 0:00:32]} 62. Kd5 {[%emt 0:00:45]} Be1 {[%emt 0:00:18]} 63. Kxe4 {[%emt 0:01:53]} Bxf2 {[%emt 0:00:25]} 64. Kf3 {[%emt 0:00:39]} Bg3 {[%emt 0:00:30]} 65. Ke4 {[%emt 0:00:00]} Kg5 {[%emt 0:00:00]} 66. Be2 {[%emt 0:00:33]} Be1 {[%emt 0:00:00]} 67. Bc4 {[%emt 0:00:00]} 1/2-1/2

[Event "World Junior U20 Girls 2018"]
[Site "Gebze"]
[Date "2018.09.08"]
[Round "5"]
[White "Haussernot, Cecile"]
[Black "Nurgali, Nazerke"]
[Result "1-0"]
[ECO "B13"]
[WhiteElo "2237"]
[BlackElo "2080"]
[Annotator "NA"]
[PlyCount "81"]
[EventDate "2018.09.05"]
[EventType "swiss"]
[EventCountry "TUR"]
[SourceTitle "playchess.com"]
[Source "ChessBase"]
[SourceQuality "1"]
[TimeControl "40/5400+30:1800+30"]

1. e4 {[%emt 0:04:30]} c6 {[%emt 0:00:30]} 2. d4 {[%emt 0:00:30]} d5 {[%emt 0:00:30]} 3. exd5 {[%emt 0:00:00]} cxd5 {[%emt 0:00:00]} 4. Bd3 {[%emt 0:00:00]} Nc6 {[%emt 0:00:00]} 5. c3 {[%emt 0:00:30]} Nf6 {[%emt 0:00:30]} 6. Bf4 {[%emt 0:00:00]} g6 {[%emt 0:01:30]} 7. Nf3 {[%emt 0:01:00]} Bg7 {[%emt 0:00:30]} 8. O-O {[%emt 0:04:30]} O-O {[%emt 0:00:30]} 9. h3 {[%emt 0:00:30]} a6 {[%emt 0:06:30]} 10. Nbd2 {[%emt 0:00:30] B13: Caro-Kann (Abtausch-Variante 4.c4)} Re8 {[%emt 0:00:30]} (10... Bf5 11. Bxf5 gxf5 12. Ne5 e6 13. Nxc6 bxc6 14. Nb3 Nd7 15. Re1 Kh8 16. Re3 a5 17. a4 Qb6 {1-0 (49) Ivanchuk,V (2740)-Riazantsev,A (2638) Dagomys 2008}) 11. Re1 {[%emt 0:04:30]} Nd7 {[%emt 0:07:30]} 12. Ne5 {[%emt 0:01:30]} Ncxe5 {[%emt 0:04:30]} 13. dxe5 {[%emt 0:01:30]} Nc5 {[%emt 0:03:30]} 14. Nf3 $146 {[%emt 0:02:30]} ({Vorgänger:} 14. Bc2 Ne6 15. Bg3 d4 16. c4 Bd7 17. Nb3 {1-0 (40) Mazziotti Irigoyen,G (2253)-Roque,P Buenos Aires 2004}) 14... b5 {[%emt 0:04:30]} 15. Nd4 {[%emt 0:00:30]} Bd7 {[%emt 0:06:30]} 16. Bc2 {[%emt 0:01:30]} e6 {[%emt 0:01:30]} 17. Qd2 {[%emt 0:01:30]} Qc7 {[%emt 0:02:30]} 18. Qe3 {[%emt 0:05:30]} Nb7 {[%emt 0:05:30]} 19. Bh6 {[%emt 0:09:30]} Bh8 {[%emt 0:05:30]} 20. Bg5 {[%emt 0:00:30]} Na5 {[%emt 0:08:30]} 21. Bf6 {[%emt 0:00:30]} Bg7 {[%emt 0:07:30]} 22. h4 {[%emt 0:08:30]} Nc4 {[%emt 0:05:30]} 23. Qg5 {[%emt 0:10:30]} h6 $16 {[%emt 0:05:30]} 24. Qf4 {[%emt 0:00:30]} Bxf6 {[%emt 0:01:30]} 25. Qxf6 {[%emt 0:00:00]} Qd8 {[%emt 0:00:30]} 26. Qf4 {[%emt 0:00:00]} Kg7 {[%emt 0:00:30]} 27. b3 {[%emt 0:00:30]} Nb6 {[%emt 0:00:30]} 28. Re3 {[%emt 0:00:30]} Qe7 {[%emt 0:03:20]} 29. Rf3 {[%emt 0:00:30]} Rf8 {[%emt 0:03:40]} 30. Re1 {[%emt 0:01:30]} Rac8 {[%emt 0:02:16]} 31. Qe3 {[%emt 0:00:30]} Na8 {[%emt 0:02:51]} 32. Ne2 {[%emt 0:03:30]} b4 {[%emt 0:02:02]} 33. Rf6 {[%emt 0:00:30]} Rg8 {[%emt 0:03:43]} 34. Rd1 {[%emt 0:03:30]} Bb5 {[%emt 0:00:31]} 35. c4 {[%emt 0:01:30]} dxc4 {[%emt 0:00:19]} 36. Nf4 {[%emt 0:00:30]} Be8 {[%emt 0:01:00]} 37. h5 {[%emt 0:06:30]} cxb3 {[%emt 0:01:00]} 38. hxg6 {[%emt 0:02:30]} fxg6 {[%emt 0:00:34]} 39. Rxe6 {[%emt 0:01:30]} Qb7 {[%emt 0:02:24]} 40. Be4 {[%emt 0:00:00]} Qb5 {[%emt 0:00:00]} 41. Nh5+ {[%emt 0:01:00]} 1-0

[Event "World Junior U20 Girls 2018"]
[Site "Gebze"]
[Date "2018.09.08"]
[Round "5"]
[White "Maltsevskaya, Aleksandra"]
[Black "Tsolakidou, Stavroula"]
[Result "1-0"]
[ECO "D40"]
[WhiteElo "2234"]
[BlackElo "2393"]
[Annotator "NA"]
[PlyCount "107"]
[EventDate "2018.09.05"]
[EventType "swiss"]
[EventCountry "TUR"]
[SourceTitle "playchess.com"]
[Source "ChessBase"]
[SourceQuality "1"]
[TimeControl "40/5400+30:1800+30"]

1. d4 {[%emt 0:00:30]} Nf6 {[%emt 0:00:30]} 2. c4 {[%emt 0:00:30]} e6 {[%emt 0:00:30]} 3. Nf3 {[%emt 0:00:30]} c5 {[%emt 0:00:00]} 4. e3 {[%emt 0:05:30]} a6 {[%emt 0:00:00]} 5. Nc3 {[%emt 0:00:30]} d5 {[%emt 0:01:30]} 6. cxd5 {[%emt 0:02:30]} exd5 {[%emt 0:00:30]} 7. Bd3 {[%emt 0:02:30] D40: Queen's Gambit Declined: Semi-Tarrasch with 5 e3} (7. Be2 Nc6 8. O-O cxd4 9. Nxd4 Bd6 10. b3 Be5 11. Nxc6 bxc6 12. Bb2 h5 13. f4 Bb8 14. Na4 Ba7 15. Bd4 Bg4 16. Bxg4 hxg4 17. Rc1 {1-0 (68) Mamedyarov,S (2801)-Navara,D (2741) Biel 2018}) 7... Nc6 {[%emt 0:07:30]} 8. O-O {[%emt 0:01:30]} Bg4 {[%emt 0:10:30]} 9. h3 {[%emt 0:04:30]} Bh5 {[%emt 0:07:30]} 10. Be2 $146 {[%emt 0:02:30]} ({Predecessor:} 10. Re1 Be7 11. dxc5 O-O 12. Be2 Bxc5 13. a3 Ba7 14. b4 Re8 {0-1 (37) Avalos,L (1687)-Cosma,E (2327) Tromsoe 2014}) 10... Bd6 {[%emt 0:06:30]} 11. dxc5 {[%emt 0:05:30]} Bxc5 {[%emt 0:00:30]} 12. b3 {[%emt 0:01:30]} O-O {[%emt 0:01:30]} 13. Bb2 {[%emt 0:00:30]} Ba7 {[%emt 0:10:30]} 14. Nd4 {[%emt 0:04:30]} Bxd4 {[%emt 0:05:30]} 15. Bxh5 {[%emt 0:04:30]} Be5 {[%emt 0:00:30]} 16. Bf3 {[%emt 0:05:30]} Qd6 {[%emt 0:01:30]} 17. Rb1 {[%emt 0:13:30]} Rfd8 {[%emt 0:08:30]} 18. Ne2 {[%emt 0:06:30]} Rac8 {[%emt 0:04:30]} 19. Nd4 {[%emt 0:02:30]} Ne7 {[%emt 0:08:30]} 20. Qe2 {[%emt 0:10:30]} Ng6 {[%emt 0:04:11]} 21. Rfd1 {[%emt 0:02:30]} Re8 {[%emt 0:02:36]} 22. Rd2 {[%emt 0:08:12]} Rcd8 {[%emt 0:00:12]} 23. Rbd1 {[%emt 0:00:00]} Nh4 {[%emt 0:00:39]} 24. Kh1 {[%emt 0:02:47]} Qd7 {[%emt 0:03:36]} 25. Bg4 {[%emt 0:01:41]} Qe7 {[%emt 0:00:15]} 26. Bf3 {[%emt 0:11:05]} Qd7 {[%emt 0:00:12]} 27. Bg4 {[%emt 0:00:02]} Qe7 {[%emt 0:00:30]} 28. Bf3 {[%emt 0:00:00]} g6 {[%emt 0:01:39]} 29. Qd3 {[%emt 0:01:02]} Qd7 {[%emt 0:00:56]} 30. Qf1 {[%emt 0:00:38]} h5 {[%emt 0:02:52]} 31. Ne2 Bxb2 {[%emt 0:00:00]} 32. Rxb2 {[%emt 0:00:41]} Nxf3 {[%emt 0:11:14]} 33. gxf3 {[%emt 0:00:30]} Qf5 {[%emt 0:00:00]} 34. Qg2 {[%emt 0:00:05]} Rc8 {[%emt 0:00:45]} 35. Rbd2 {[%emt 0:00:12]} Rc5 {[%emt 0:00:30]} 36. Nf4 {[%emt 0:01:21]} Rec8 {[%emt 0:00:49]} 37. Qg3 {[%emt 0:00:48]} Rc1 {[%emt 0:00:31]} 38. Ne2 {[%emt 0:00:39]} Rxd1+ {[%emt 0:00:23]} 39. Rxd1 {[%emt 0:00:04]} h4 {[%emt 0:00:33]} 40. Qg2 {[%emt 0:00:00]} Kg7 {[%emt 0:00:00]} 41. Nd4 {[%emt 0:01:13]} Qh5 {[%emt 0:07:37]} 42. Rg1 {[%emt 0:02:30]} Rc3 {[%emt 0:09:55]} 43. Qh2 {[%emt 0:01:30]} Rd3 {[%emt 0:00:49]} 44. Qf4 {[%emt 0:00:30]} Nh7 {[%emt 0:07:13]} 45. Nf5+ {[%emt 0:06:30]} Kg8 {[%emt 0:04:14]} 46. Nh6+ {[%emt 0:00:30]} Kg7 {[%emt 0:00:00]} 47. Nxf7 {[%emt 0:00:00]} Rd2 {[%emt 0:01:04]} 48. Ne5 {[%emt 0:07:47]} g5 {[%emt 0:00:06]} 49. Qb4 $18 {[%emt 0:03:01]} (49. Qf5 $142 Qh6 50. Rc1 Rd1+ 51. Rxd1) 49... Rxf2 {[%emt 0:02:09]} 50. Qxb7+ {[%emt 0:00:28]} Kf8 {[%emt 0:01:25]} 51. Rc1 {[%emt 0:03:09]} Nf6 {[%emt 0:00:28]} 52. Rc8+ {[%emt 0:00:16]} Ne8 {[%emt 0:00:35]} 53. Qb4+ {[%emt 0:00:12]} Kg8 {[%emt 0:00:00]} 54. Qe7 {[%emt 0:00:06]} 1-0

[Event "World Junior U20 Girls 2018"]
[Site "Gebze"]
[Date "2018.09.08"]
[Round "5"]
[White "Paramzina, Anastasya"]
[Black "Dwilewicz, Katarzyna"]
[Result "1-0"]
[ECO "C54"]
[WhiteElo "2222"]
[BlackElo "2081"]
[Annotator "NA"]
[PlyCount "75"]
[EventDate "2018.09.05"]
[EventType "swiss"]
[EventCountry "TUR"]
[SourceTitle "playchess.com"]
[Source "ChessBase"]
[SourceQuality "1"]
[TimeControl "40/5400+30:1800+30"]

1. e4 {[%emt 0:05:30]} e5 {[%emt 0:00:30]} 2. Nf3 {[%emt 0:00:00]} Nc6 {[%emt 0:00:00]} 3. Bc4 {[%emt 0:00:00]} Bc5 {[%emt 0:00:00]} 4. O-O {[%emt 0:00:30]} Nf6 {[%emt 0:00:30]} 5. d3 {[%emt 0:00:30]} d6 {[%emt 0:00:30]} 6. c3 {[%emt 0:00:30]} h6 {[%emt 0:01:30]} 7. Nbd2 {[%emt 0:01:30]} O-O {[%emt 0:00:30]} 8. Re1 {[%emt 0:01:30]} a6 {[%emt 0:02:30]} 9. a4 {[%emt 0:00:30]} Ba7 {[%emt 0:00:30]} 10. a5 {[%emt 0:01:30]} Ne7 {[%emt 0:05:30]} 11. Nf1 {[%emt 0:01:30]} Ng6 {[%emt 0:00:30]} 12. Ng3 {[%emt 0:05:30]} c6 {[%emt 0:05:30]} 13. Ba2 {[%emt 0:01:30]} Re8 {[%emt 0:07:30]} 14. b4 {[%emt 0:18:30]} Be6 {[%emt 0:05:30]} 15. c4 {[%emt 0:02:30]} Qd7 {[%emt 0:02:30]} 16. Be3 {[%emt 0:14:30]} Kh7 {[%emt 0:08:30]} 17. h3 {[%emt 0:04:30]} Qc7 {[%emt 0:07:30]} 18. d4 {[%emt 0:05:30]} exd4 {[%emt 0:15:30]} 19. Nxd4 {[%emt 0:02:30]} Bxd4 {[%emt 0:03:30]} 20. Bxd4 {[%emt 0:00:30]} Nd7 {[%emt 0:01:30]} 21. Nf5 {[%emt 0:07:30]} f6 {[%emt 0:07:30]} 22. Bc3 {[%emt 0:03:30]} d5 {[%emt 0:04:22]} 23. cxd5 {[%emt 0:01:30]} cxd5 {[%emt 0:00:12]} 24. Bxd5 {[%emt 0:00:30]} Bxd5 {[%emt 0:00:52]} 25. Qxd5 {[%emt 0:00:30]} Qxc3 {[%emt 0:02:38]} 26. Qxd7 {[%emt 0:00:30]} Rg8 {[%emt 0:00:06]} 27. Qxb7 {[%emt 0:00:30]} Nf4 {[%emt 0:03:47]} 28. Rad1 {[%emt 0:03:58]} Rab8 {[%emt 0:02:05]} 29. Qxa6 {[%emt 0:00:38]} Rxb4 {[%emt 0:06:12]} 30. Qd6 {[%emt 0:00:45]} Ng6 {[%emt 0:02:03]} 31. Rc1 {[%emt 0:02:56]} Qa3 {[%emt 0:02:13]} 32. Ra1 {[%emt 0:00:44]} Qc3 {[%emt 0:00:40]} 33. a6 {[%emt 0:07:42]} Rxe4 {[%emt 0:01:14]} 34. Rec1 {[%emt 0:00:14]} Qb2 {[%emt 0:01:03]} 35. a7 {[%emt 0:00:06]} Rf4 {[%emt 0:00:27]} 36. Qc5 {[%emt 0:01:30]} Rc8 {[%emt 0:02:01]} 37. Qxc8 {[%emt 0:01:19]} Qxf2+ {[%emt 0:00:07]} 38. Kh1 {[%emt 0:00:12]} 1-0

[Event "World Junior U20 Girls 2018"]
[Site "Gebze"]
[Date "2018.09.08"]
[Round "5"]
[White "Altantuya, Boldbaatar"]
[Black "Assaubayeva, Bibisara"]
[Result "0-1"]
[ECO "E63"]
[WhiteElo "2210"]
[BlackElo "2371"]
[Annotator "NA"]
[PlyCount "88"]
[EventDate "2018.09.05"]
[EventType "swiss"]
[EventCountry "TUR"]
[SourceTitle "playchess.com"]
[Source "ChessBase"]
[SourceQuality "1"]
[TimeControl "40/5400+30:1800+30"]

1. d4 {[%emt 0:00:30]} Nf6 {[%emt 0:00:30]} 2. c4 {[%emt 0:00:00]} g6 {[%emt 0:00:30]} 3. Nc3 {[%emt 0:00:00]} Bg7 4. Nf3 {[%emt 0:00:30]} O-O {[%emt 0:01:00]} 5. g3 {[%emt 0:00:30]} d6 {[%emt 0:00:00]} 6. Bg2 {[%emt 0:01:30]} Nc6 {[%emt 0:00:00]} 7. O-O {[%emt 0:00:30]} a6 {[%emt 0:00:30]} 8. h3 {[%emt 0:00:30]} Rb8 {[%emt 0:00:00]} 9. e4 {[%emt 0:01:30]} b5 {[%emt 0:00:00]} 10. e5 {[%emt 0:00:30]} dxe5 {[%emt 0:01:30]} 11. dxe5 {[%emt 0:00:30]} Nd7 {[%emt 0:00:30] E63: King's Indian: Fianchetto: Panno Variation with 7...a6} (11... Qxd1 12. Rxd1 Nd7 13. e6 fxe6 14. cxb5 axb5 15. Bf4 b4 16. Na4 Nb6 17. Nxb6 Rxb6 18. Bxc7 Rb7 19. Bf4 Bxb2 20. Rab1 Bc3 21. Bh6 Bg7 22. Bxg7 Kxg7 23. Ng5 Rb6 {½-½ (40) Nielsen,P (2662)-Sjugirov,S (2624) Barcelona 2012}) 12. e6 {[%emt 0:02:30]} fxe6 {[%emt 0:00:30]} 13. cxb5 {[%emt 0:00:30]} axb5 {[%emt 0:00:00]} 14. Qe2 {[%emt 0:01:30]} Nde5 {[%emt 0:07:00]} 15. Nxe5 {[%emt 0:04:30]} Nxe5 {[%emt 0:00:30]} 16. Bf4 $146 {[%emt 0:00:00]} ({Predecessor:} 16. Rd1 Bd7 17. Ne4 Qe8 18. Bf4 {1-0 (38) Nagy,G (2422)-Zhou,Q (2156) Kecskemet 2014}) 16... Nd3 {[%emt 0:07:30]} 17. Bxc7 {[%emt 0:18:00]} Qxc7 {[%emt 0:00:30]} 18. Qxd3 {[%emt 0:00:30]} b4 {[%emt 0:04:30]} 19. Ne4 {[%emt 0:01:30]} Bxb2 {[%emt 0:05:30]} 20. Rab1 {[%emt 0:05:30]} Ba3 {[%emt 0:03:30]} 21. Qe3 {[%emt 0:09:30]} Qe5 {[%emt 0:11:30]} 22. Rfe1 {[%emt 0:05:30]} Ba6 {[%emt 0:09:30]} 23. Qh6 {[%emt 0:21:30]} Rfc8 {[%emt 0:08:30]} 24. Ng5 {[%emt 0:05:21]} Qg7 {[%emt 0:01:30]} 25. Qxg7+ {[%emt 0:01:31]} Kxg7 {[%emt 0:00:00]} 26. Nxe6+ {[%emt 0:02:48]} Kh8 {[%emt 0:03:00]} 27. Bd5 {[%emt 0:06:54]} Bd3 {[%emt 0:09:30]} 28. Rb3 {[%emt 0:01:57]} Rc3 {[%emt 0:03:30]} 29. Nd4 {[%emt 0:07:50]} Rd8 {[%emt 0:03:30]} 30. Re5 {[%emt 0:00:25]} Rc1+ {[%emt 0:05:08]} 31. Kh2 {[%emt 0:00:10]} Rc3 {[%emt 0:04:20]} 32. Nc6 {[%emt 0:00:52]} Rd7 {[%emt 0:01:11]} 33. Nxe7 {[%emt 0:00:32]} Bc2 {[%emt 0:00:00]} 34. Rxc3 {[%emt 0:00:33]} bxc3 {[%emt 0:00:20]} 35. Nc6 {[%emt 0:00:31]} Bd1 {[%emt 0:02:14]} 36. Re8+ {[%emt 0:00:30]} Kg7 {[%emt 0:00:00]} 37. Rg8+ {[%emt 0:00:38]} Kh6 {[%emt 0:00:06]} 38. Be4 {[%emt 0:00:24]} c2 {[%emt 0:03:13]} 39. Bxc2 {[%emt 0:00:30]} Bxc2 {[%emt 0:00:30]} 40. Ne5 {[%emt 0:00:00]} Rd2 {[%emt 0:00:00]} 41. Nf7+ {[%emt 0:02:34]} Kh5 {[%emt 0:01:58]} 42. Rg7 {[%emt 0:00:30]} h6 $19 {[%emt 0:02:30]} 43. Rh7 {[%emt 0:00:30]} Bf8 {[%emt 0:00:30]} 44. Kg1 {[%emt 0:01:30]} Be4 {[%emt 0:04:30]} 0-1